fUSD/lending_fUSD_20240506
["ID","MTS","AMOUNT","RATE_DAILY","PERIOD"]
[326468614,1714954231420,-539.97375662,8.2e-05,2]
[326468615,1714954231429,-155.0,8.2e-05,2]
[326468616,1714954231438,-305.72421467,8.2e-05,2]
[326468617,1714954231447,-370.50068644,8.201e-05,2]
[326468618,1714954231456,-1151.45128655,8.201e-05,2]
[326468619,1714954231477,-91.85625285,8.201e-05,2]
[326468620,1714954231487,-2324.66643481,8.201e-05,2]
[326468621,1714954231497,-155.0,8.201e-05,2]
[326468622,1714954231506,-2182.52647844,8.201e-05,2]
[326468623,1714954231515,-237.06294402,8.201e-05,2]
[326468624,1714954231524,-1062.09792359,8.201e-05,2]
[326468625,1714954231533,-7390.29321684,8.202e-05,2]
[326468626,1714954231544,-4618.0134304,8.202e-05,2]
[326468627,1714954231555,-325.09234905,8.202e-05,2]
[326468628,1714954231566,-695.5562158,8.202e-05,2]
[326468629,1714954231577,-389.86639294,8.202e-05,2]
[326468630,1714954231605,-1552.99894686,8.202e-05,2]
[326468631,1714954231616,-4386.35969042,8.202e-05,2]
[326468632,1714954231627,-256.4326,8.202e-05,2]
[326468633,1714954231645,-3181.10206591,8.202e-05,2]
[326468634,1714954231655,-193.00424043,8.202e-05,2]
[326468635,1714954231664,-1894.91058799,8.202e-05,2]
[326468636,1714954231675,-102.43506502,8.202e-05,2]
[326468637,1714954231684,-1297.56493498,8.202e-05,2]
[326468638,1714954231695,-1268.0,8.202e-05,2]
[326468639,1714954231706,-339.7200004,8.202e-05,2]
[326468640,1714954231717,-98.77953765,8.202e-05,2]
[326468641,1714954231727,-155.0,8.202e-05,2]
[326468642,1714954231736,-3279.04154518,8.203e-05,2]
[326468643,1714954231747,-155.0,8.203e-05,2]
[326468644,1714954231756,-155.0,8.203e-05,2]
[326468645,1714954231765,-128.24915717,8.203e-05,2]
[326468647,1714954231776,-359.74157991,8.203e-05,2]
[326468648,1714954231784,-1245.57855246,8.203e-05,2]
[326468650,1714954231798,-132.90369674,8.203e-05,2]
[326468652,1714954231808,-167.58743393,8.203e-05,2]
[326468655,1714954231817,-326.15457562,8.203e-05,2]
[326468656,1714954231826,-404.16255918,8.204e-05,2]
[326468658,1714954231837,-363.6,8.204e-05,2]
[326468662,1714954231860,-3502.61510504,8.204e-05,2]
[326468664,1714954231869,-161.73293461,8.204e-05,2]
[326468666,1714954231878,-177.59203008,8.204e-05,2]
[326468668,1714954231886,-782.33282366,8.204e-05,2]
[326468670,1714954231895,-155.0,8.204e-05,2]
[326468671,1714954231905,-155.0,8.204e-05,2]
[326468674,1714954231914,-1051.95762564,8.205e-05,2]
[326468676,1714954231923,-155.0,8.205e-05,2]
[326468677,1714954231932,-343.8031317,8.205e-05,2]
[326468680,1714954231941,-414.96634927,8.205e-05,2]
[326468682,1714954231952,-1948.14699819,8.205e-05,2]
[326468684,1714954231961,-707.48452441,8.205e-05,2]
[326468686,1714954231970,-155.0,8.206e-05,2]
[326468688,1714954231978,-540.13353077,8.206e-05,2]
[326468690,1714954231987,-155.0,8.206e-05,2]
[326468692,1714954231997,-1778.80151478,8.206e-05,2]
[326468694,1714954232006,-534.84750567,8.206e-05,2]
[326468696,1714954232015,-377.35579036,8.206e-05,2]
[326468698,1714954232023,-157.46477179,8.207e-05,2]
[326468700,1714954232032,-533.77884656,8.207e-05,2]
[326468702,1714954232042,-546.24344743,8.207e-05,2]
[326468704,1714954232052,-155.0,8.207e-05,2]
[326468706,1714954232061,-407.48349287,8.208e-05,2]
[326468708,1714954232070,-1295.68401384,8.208e-05,2]
[326468710,1714954232079,-150.0,8.212e-05,2]
[326468712,1714954232088,-150.0,8.212e-05,2]
[326468714,1714954232098,-1386.66368034,8.238e-05,2]
[326468716,1714954232106,-150.01,8.244e-05,2]
[326468718,1714954232115,-217.5,9.368e-05,2]
[326468720,1714954232124,-800.0,9.644e-05,2]
[326468722,1714954232133,-150.99,9.67e-05,2]
[326468724,1714954232142,-499.99,9.67e-05,2]
[326468726,1714954232150,-1828.8520583,9.67e-05,2]
[326468728,1714954232161,-25580.7379417,9.67e-05,2]
[326468730,1714954232170,-788.18220101,0.0001,2]
[326468732,1714954232179,-493.33,0.00010067,2]
[326468734,1714954232188,-4248.42,0.00010316,2]
[326468736,1714954232196,-600.0,0.00010332,2]
[326468738,1714954232205,-500.0,0.00010342,2]
[326468740,1714954232214,-19744.99,0.00010389,2]
[326468742,1714954232223,-400.0,0.0001041,2]
[326468744,1714954232231,-250.0,0.00010475,2]
[326468746,1714954232240,-165.32,0.00010477,2]
[326468748,1714954232250,-159.85,0.00010496,2]
[326468750,1714954232259,-3199.98,0.00010498,2]
[326468752,1714954232268,-217.5,0.00010539,2]
[326468754,1714954232276,-181.24,0.00010712,2]
[326468756,1714954232285,-750.17982827,0.00011,2]
[326468758,1714954232294,-600.0,0.00011624,2]
[326468760,1714954232303,-217.5,0.0001171,2]
[326468762,1714954232312,-400.0,0.00011712,2]
[326468764,1714954232321,-11440.62743744,0.00012,2]
[326468766,1714954232330,-180.78,0.00012033,2]
[326468768,1714954232339,-2350.66978304,0.00012348,2]
[326468770,1714954232347,-181.24,0.00012498,2]
[326468772,1714954232356,-233.6301,0.000128,2]
[326468774,1714954232365,-206.52501692,0.00012868,2]
[326468795,1714954237468,-954.46074173,8.199e-05,2]
[326468796,1714954237478,-155.0,8.199e-05,2]
[326468797,1714954237487,-407.48349287,8.199e-05,2]
[326468798,1714954237496,-8.78229577,0.00012868,2]
[326468799,1714954237506,-217.5,0.00012881,2]
[326468800,1714954237515,-43868.32849967,0.000129,2]
[326468801,1714954237525,-1000.0,0.000129,2]
[326468802,1714954237533,-163.70588463,0.000129,2]
[326468803,1714954237543,-157.76248635,0.000129,2]
[326468804,1714954237552,-218.22894187,0.000129,2]
[326468805,1714954237561,-2082.19750538,0.000129,2]
[326468806,1714954237570,-190.51061328,0.000129,2]
[326468807,1714954237580,-7500.0,0.000129,2]
[326468808,1714954237589,-3036.09988595,0.000129,2]
[326468809,1714954237598,-1743.7144615,0.000129,2]
[326468810,1714954237607,-549.05042096,0.000129,2]
[326468811,1714954237616,-13578.91122462,0.000129,2]
[326468812,1714954237626,-600.0,0.00012915,2]
[326468813,1714954237635,-800.0,0.00012986,2]
[326468814,1714954237644,-155.36852506,0.0001299,2]
[326468815,1714954237653,-155.36852506,0.0001299,2]
[326468816,1714954237662,-3083.19521143,0.00012997,2]
[326468817,1714954237671,-559.09735674,0.00012997,2]
[326468818,1714954237681,-867.13607682,0.00012998,2]
[326468819,1714954237690,-2357.86048009,0.00012998,2]
[326468820,1714954237698,-1245.81753836,0.00012998,2]
[326468821,1714954237708,-175.89763,0.00012998,2]
[326468822,1714954237720,-324.1129268,0.00012998,2]
[326468823,1714954237729,-216.22293644,0.00012998,2]
[326468824,1714954237738,-409.12808028,0.00012998,2]
[326468825,1714954237749,-200.46583698,0.00012998,2]
[326468826,1714954237758,-155.76623754,0.00012998,2]
[326468827,1714954237767,-305.60617377,0.00012998,2]
[326468828,1714954237777,-236.72474812,0.00012998,2]
[326468829,1714954237786,-162.22835708,0.00012998,2]
[326468830,1714954237799,-204.1317369,0.00012998,2]
[326468831,1714954237809,-527.60952804,0.00012998,2]
[326468832,1714954237818,-206.94540813,0.00012998,2]
[326468833,1714954237827,-208.058967,0.00012998,2]
[326468834,1714954237837,-317.215551,0.00012998,2]
[326468835,1714954237846,-155.0,0.00012998,2]
[326468836,1714954237856,-155.0,0.00012998,2]
[326468837,1714954237865,-404.56209638,0.00012998,2]
[326468838,1714954237875,-155.0,0.00012998,2]
[326468839,1714954237885,-193.04984217,0.00012998,2]
[326468840,1714954237894,-155.0,0.00012999,2]
[326468841,1714954237904,-266.89752184,0.00012999,2]
[326468842,1714954237913,-4429.73294498,0.00012999,2]
[326468843,1714954237923,-65533.81187777,0.00013,2]
[326468844,1714954237935,-1626265.09340973,0.00013,2]
[326468845,1714954237944,-52238.04018644,0.00013,2]
[326468846,1714954237983,-12492.10932876,0.00013,2]
[326468867,1714954239504,-368.6866295,0.00013,2]
[326468869,1714954239517,-471.98999998,0.00013,2]
[326468872,1714954239529,-950.02499998,0.00013,2]
[326468908,1714954239966,-321.78,0.00013,2]
[326468959,1714954242548,-392.30596212,0.00013,2]
[326468960,1714954242873,-2005.41746831,0.00013,2]
[326469028,1714955431818,-546.24344743,9.102e-05,2]
[326469029,1714955431829,-68.48452837,9.103e-05,2]
[326469030,1714955431841,-86.51547163,9.103e-05,2]
[326469031,1714955431850,-341.58607137,9.103e-05,2]
[326469032,1714955431862,-460.43123519,9.103e-05,2]
[326469033,1714955431874,-249.94031908,9.103e-05,2]
[326469034,1714955431883,-360.08902051,9.104e-05,2]
[326469035,1714955431892,-155.0,9.105e-05,2]
[326469036,1714955431901,-150.0,9.105e-05,2]
[326469037,1714955431909,-177.59203008,9.106e-05,2]
[326469038,1714955431919,-4411.78886358,9.106e-05,2]
[326469039,1714955431928,-1243.3075394,9.106e-05,2]
[326469040,1714955431937,-4270.37766422,9.106e-05,2]
[326469041,1714955431946,-158.09,9.125e-05,2]
[326469042,1714955431955,-760.0,0.00010003,2]
[326469043,1714955431965,-499.99,0.00010003,2]
[326469044,1714955431974,-210.0,0.00010015,2]
[326469045,1714955431983,-293.0,0.00011017,2]
[326469046,1714955431992,-760.0,0.00011253,2]
[326469047,1714955432001,-240.0,0.00011364,2]
[326469048,1714955432012,-315.03,0.00011364,2]
[326469049,1714955432021,-250.0,0.00011436,2]
[326469050,1714955432031,-284.0,0.00011464,2]
[326469051,1714955432040,-573.24627418,0.00011579,2]
[326469052,1714955432049,-952.94230759,0.00012348,2]
[326469053,1714955432058,-760.0,0.00012504,2]
[326469054,1714955432067,-153.95202105,0.0001275,2]
[326469055,1714955432077,-561.60948709,0.00012768,2]
[326469056,1714955432087,-240.0,0.00012784,2]
[326469057,1714955432101,-315.03,0.00012784,2]
[326469058,1714955432111,-153.95202105,0.000128,2]
[326469059,1714955432120,-5282.9076,0.000128,2]
[326469060,1714955432130,-2471.7603,0.000128,2]
[326469062,1714955432139,-256.4472,0.000128,2]
[326469063,1714955432148,-1154.4548,0.000128,2]
[326469065,1714955432157,-153.95202105,0.0001285,2]
[326469067,1714955432167,-317.215551,0.00012866,2]
[326469069,1714955432182,-155.0,0.00012866,2]
[326469071,1714955432191,-825.63954171,0.00012867,2]
[326469073,1714955432200,-797.43257452,0.00012868,2]
[326469075,1714955432211,-19475.80199094,0.00012868,2]
[326469077,1714955432221,-500.0,0.00012896,2]
[326469079,1714955432230,-284.0,0.00012897,2]
[326469081,1714955432239,-860.3372,0.00012898,2]
[326469083,1714955432248,-561.60948709,0.00012899,2]
[326469085,1714955432257,-446.3392,0.000129,2]
[326469087,1714955432269,-2782.163,0.000129,2]
[326469089,1714955432278,-890.05,0.000129,2]
[326469091,1714955432287,-153.95202105,0.000129,2]
[326469093,1714955432295,-42164.48069259,0.000129,2]
[326469095,1714955432304,-158.36263532,0.000129,2]
[326469097,1714955432314,-156.53877362,0.000129,2]
[326469099,1714955432323,-1602.95426868,0.000129,2]
[326469101,1714955432332,-7500.0,0.000129,2]
[326469103,1714955432341,-2317.65547147,0.00012997,2]
[326469104,1714955432350,-303.76297278,0.00012997,2]
[326469106,1714955432359,-2082.05122189,0.00012998,2]
[326469107,1714955432368,-213.59835857,0.00012998,2]
[326469108,1714955432377,-157.36597325,0.00012998,2]
[326469109,1714955432386,-1215.46768777,0.00012998,2]
[326469110,1714955432395,-2222.48396428,0.00012998,2]
[326469111,1714955432404,-289.65983821,0.00012998,2]
[326469112,1714955432414,-192.89721989,0.00012998,2]
[326469113,1714955432423,-155.0,0.00012998,2]
[326469114,1714955432433,-781.93995222,0.00012998,2]
[326469115,1714955432444,-2181.23339444,0.00012998,2]
[326469116,1714955432454,-155.0,0.00012998,2]
[326469117,1714955432463,-1827.53836629,0.00012998,2]
[326469118,1714955432473,-377.1056151,0.00012998,2]
[326469119,1714955432482,-167.48652279,0.00012998,2]
[326469120,1714955432491,-2361.73726308,0.00012998,2]
[326469121,1714955432501,-168.80224381,0.00012998,2]
[326469122,1714955432513,-1047.69367185,0.00012998,2]
[326469123,1714955432567,-300.0,0.00012998,2]
[326469124,1714955432580,-385.01912969,0.00012998,2]
[326469125,1714955432593,-5917.54801313,0.00012998,2]
[326469126,1714955432602,-236.9275441,0.00012999,2]
[326469127,1714955432612,-370.29947612,0.00012999,2]
[326469128,1714955432624,-343.6015532,0.00012999,2]
[326469129,1714955432634,-334.95081471,0.00012999,2]
[326469130,1714955432643,-273.34533967,0.00012999,2]
[326469131,1714955432653,-306.95158875,0.00012999,2]
[326469132,1714955432662,-1996.29012555,0.00012999,2]
[326469133,1714955432671,-259.32312542,0.00012999,2]
[326469134,1714955432680,-1294.62409841,0.00012999,2]
[326469135,1714955432689,-325.08549156,0.00012999,2]
[326469136,1714955432698,-160.53379873,0.00012999,2]
[326469137,1714955432708,-304.32822358,0.00012999,2]
[326469138,1714955432717,-491.38587408,0.00012999,2]
[326469139,1714955432726,-157.97182833,0.00012999,2]
[326469140,1714955432735,-155.59762464,0.00012999,2]
[326469141,1714955432745,-4763.91639271,0.00013,2]
[326469142,1714955432758,-462.3687692,0.00013,2]
[326469143,1714955432779,-52366.10599794,0.00013,2]
[326469144,1714955432790,-7140.50711314,0.00013,2]
[326469145,1714955432802,-61206.5463406,0.00013,2]
[326469146,1714955432814,-332943.38549904,0.00013,2]
[326469147,1714955432844,-658.25,0.00013,2]
[326469148,1714955432855,-59020.97527109,0.00013,2]
[326469149,1714955432867,-4321.14263448,0.00013,2]
[326469161,1714955437801,-181.53787438,0.0001299,2]
[326469162,1714955437812,-6265.30252562,0.00013,2]
[326469163,1714955437825,-2000.0,0.00013,2]
[326469164,1714955437839,-25239.82464,0.00013,2]
[326469165,1714955437852,-40188.70718728,0.00013,2]
[326469199,1714955440108,-473.92000146,0.00013,2]
[326469200,1714955440120,-1932.48026,0.00013,2]
[326469201,1714955440132,-366.89992832,0.00013,2]
[326469202,1714955440145,-2640.10736042,0.00013,2]
[326469203,1714955440162,-737.68938818,0.00013,2]
[326469205,1714955440197,-706.70000108,0.00013,2]
[326469206,1714955440208,-286.313,0.00013,2]
[326469207,1714955440219,-15228.66257192,0.00013,2]
[326469208,1714955440230,-443.43736833,0.00013,2]
[326469209,1714955440303,-7699.95517946,0.00013,2]
[326469210,1714955440343,-1538.7074705,0.00013,2]
[326469221,1714955442786,-550.955965,0.00012999,2]
[326469222,1714955442798,-501.00166064,0.00012999,2]
[326469223,1714955442807,-265.22373571,0.00013,2]
[326469224,1714955442843,-216477.00699058,0.00013,2]
[326469225,1714955442862,-4162.56256622,0.00013,2]
[326469226,1714955442907,-3779.61037205,0.00013,2]
[326469227,1714955442917,-885.55258049,0.00013,2]
[326469234,1714955445662,-1243.3075394,0.00012999,2]
[326469235,1714955445672,-300.07418376,0.00012999,2]
[326469236,1714955445682,-155.0,0.00012999,2]
[326469237,1714955445691,-4599.21827685,0.00013,2]
[326469238,1714955445727,-392.67559406,0.00013,2]
[326469259,1714956062955,151.0,0.00020249,30]
[326469267,1714956515939,151.0,0.00020237,30]
[326469306,1714956640460,-573.2828905,8.755e-05,2]
[326469307,1714956640484,-478.67473514,8.755e-05,2]
[326469308,1714956640508,-3234.70146461,8.755e-05,2]
[326469309,1714956641233,-1035.67619961,8.755e-05,2]
[326469310,1714956641264,-533.77884656,8.755e-05,2]
[326469311,1714956641278,-177.59203008,8.756e-05,2]
[326469312,1714956641289,-175.97745463,8.756e-05,2]
[326469313,1714956641311,-1243.3075394,8.756e-05,2]
[326469314,1714956641335,-546.24344743,8.757e-05,2]
[326469315,1714956641357,-4411.78886358,8.757e-05,2]
[326469316,1714956641374,-12218.1742,8.758e-05,2]
[326469317,1714956641396,-326.15457562,8.846e-05,2]
[326469318,1714956641423,-150.0,8.855e-05,2]
[326469319,1714956641451,-150.0,8.855e-05,2]
[326469320,1714956641494,-300.07418376,8.998e-05,2]
[326469321,1714956641520,-155.0,9.007e-05,2]
[326469322,1714956641534,-227.92794385,9.1e-05,2]
[326469323,1714956641571,-155.0,9.1e-05,2]
[326469324,1714956641591,-317.215551,9.1e-05,2]
[326469325,1714956641612,-150.99,9.67e-05,2]
[326469326,1714956641643,-210.0,9.741e-05,2]
[326469328,1714956641664,-538.51236108,0.0001071,2]
[326469330,1714956641694,-23880.0,0.00010868,2]
[326469331,1714956641715,-215.65,0.00011071,2]
[326469332,1714956641743,-190.43,0.00011166,2]
[326469333,1714956641769,-250.0,0.00011202,2]
[326469334,1714956641796,-180.0,0.00011228,2]
[326469335,1714956641830,-164.64,0.00011558,2]
[326469336,1714956641846,-524.39078621,0.00012053,2]
[326469337,1714956641884,-957.309711,0.00012054,2]
[326469338,1714956641907,-28186.13,0.00012055,2]
[326469339,1714956641919,-1489.8982,0.00012799,2]
[326469340,1714956641949,-155.36863159,0.000128,2]
[326469341,1714956641976,-155.36863157,0.00012833,2]
[326469342,1714956642009,-155.36863157,0.00012867,2]
[326469343,1714956642023,-21157.2279,0.00012899,2]
[326469344,1714956642037,-2398.2696,0.000129,2]
[326469345,1714956642052,-245000.0,0.000129,2]
[326469346,1714956642077,-40560.56766113,0.000129,2]
[326469347,1714956642099,-156.70518506,0.000129,2]
[326469348,1714956642126,-155.36863157,0.000129,2]
[326469349,1714956642149,-155.62098904,0.000129,2]
[326469350,1714956642167,-239.42318723,0.000129,2]
[326469351,1714956642200,-2759.79259381,0.000129,2]
[326469352,1714956642213,-7500.0,0.000129,2]
[326469353,1714956642236,-261.20093934,0.000129,2]
[326469354,1714956642251,-1783.0693221,0.000129,2]
[326469355,1714956642275,-4587.97821425,0.00012986,2]
[326469356,1714956642296,-169.95967083,0.0001299,2]
[326469357,1714956642328,-169.95967083,0.0001299,2]
[326469358,1714956642341,-200.0,0.00012998,2]
[326469359,1714956642372,-321.17612737,0.00012998,2]
[326469360,1714956642399,-305.45205436,0.00012998,2]
[326469361,1714956642414,-262.28941017,0.00012999,2]
[326469362,1714956642433,-35291.5975136,0.00012999,2]
[326469363,1714956642455,-424.54664826,0.00012999,2]
[326469364,1714956642490,-2736.45604873,0.00012999,2]
[326469365,1714956642510,-457249.72945747,0.00013,2]
[326469366,1714956642530,-155.0,0.00013,2]
[326469367,1714956642543,-179.73027173,0.00013,2]
[326469368,1714956642570,-159.38767462,0.00013,2]
[326469369,1714956642593,-1374.34488026,0.00013,2]
[326469370,1714956642633,-4650.0,0.00013,2]
[326469371,1714956642656,-465.89658979,0.00013,2]
[326469372,1714956642679,-356001.18178849,0.00013,2]
[326469373,1714956642914,-358.33485164,0.00013,2]
[326469374,1714956644185,-785.73790934,0.00011031,2]
[326469375,1714956644206,-70.26209066,0.00011031,2]
[326469376,1714956644228,-581.93865147,0.0001241,2]
[326469377,1714956644282,-274.06134853,0.0001241,2]
[326469378,1714956644304,-203.34041223,0.00013,2]
[326469379,1714956644338,-959.199,0.00013,2]
[326469380,1714956644458,-1163.68068873,0.00013,2]
[326469381,1714956644492,-631.33700009,0.00013,2]
[326469382,1714956644513,-345.59999998,0.00013,2]
[326469383,1714956644529,-680.51216495,0.00013,2]
[326469384,1714956644556,-495.28604812,0.00013,2]
[326469385,1714956644646,-617.42097586,0.00013,2]
[326469386,1714956644663,-2125.22583446,0.00013,2]
[326469387,1714956644684,-7225.95188826,0.00013,2]
[326469388,1714956644712,-339.25813426,0.00013,2]
[326469389,1714956644736,-688.15196471,0.00013,2]
[326469390,1714956644776,-389.72999925,0.00013,2]
[326469391,1714956644791,-505.53116172,0.00013,2]
[326469400,1714956648185,-2010.499,0.000128,2]
[326469401,1714956648201,-985.024691,0.00013,2]
[326469402,1714956648222,-736.0,0.00013,2]
[326469403,1714956648255,-2544.80418807,0.00013,2]
[326469404,1714956648277,-8280.005795,0.00013,2]
[326469405,1714956648351,-363.48067535,0.00013,2]
[326469406,1714956648374,-693.38000075,0.00013,2]
[326469407,1714956648398,-16231.02761,0.00013,2]
[326469408,1714956648422,-359.00939672,0.00013,2]
[326469409,1714956648455,-6257.56595031,0.00013,2]
[326469410,1714956648523,-29485.04690252,0.00013,2]
[326469411,1714956648549,-661.36009681,0.00013,2]
[326469412,1714956648682,-519.67328745,0.00013,2]
[326469413,1714956648741,-1515.48982,0.00013,2]
[326469444,1714956655741,-543.14126934,0.00012999,2]
[326469445,1714956655760,-188.71477477,0.00012999,2]
[326469446,1714956655772,-182.97103503,0.00012999,2]
[326469447,1714956655799,-1243.3075394,0.00012999,2]
[326469448,1714956655830,-1391.52692337,0.00013,2]
[326469449,1714956655863,-608.32277024,0.00013,2]
[326469450,1714956655881,-364.18813852,0.00013,2]
[326469451,1714956655901,-1087.10900317,0.00013,2]
[326469455,1714956656183,-427.78958744,0.000129,2]
[326469456,1714956656206,-546.24344743,0.00012998,2]
[326469457,1714956656229,-240.00619579,0.00013,2]
[326469458,1714956656255,-4124.89055274,0.00013,2]
[326469460,1714956656395,-1474.09241909,0.00013,2]
[326469462,1714956656425,-148895.81203197,0.00013,2]
[326469463,1714956656450,-489.23716,0.00013,2]
[326469464,1714956656473,-8542.89999,0.00013,2]
[326469465,1714956656495,-736.37395775,0.00013,2]
[326469466,1714956656518,-732.3,0.00013,2]
[326469467,1714956656539,-3002.23633276,0.00013,2]
[326469468,1714956656561,-9313.21597719,0.00013,2]
[326469469,1714956656582,-2882.0,0.00013,2]
[326469470,1714956656614,-7786.92172431,0.00013,2]
[326469474,1714956656943,-4540.0,0.00013,2]
[326469476,1714956656964,-690.69,0.00013,2]
[326469477,1714956656987,-631954.42594333,0.00013,2]
[326469479,1714956657015,-326.61590721,0.00013,2]
[326469480,1714956657164,-582.270009,0.00012998,2]
[326469481,1714956657192,-1066.32182804,0.00012998,2]
[326469482,1714956657212,-2763.19702654,0.00012998,2]
[326469483,1714956657229,-61198.78246459,0.00013,2]
[326469484,1714956688657,-862.94562231,0.00012836,2]
[326469485,1714956688692,-3000.0,0.0001287,2]
[326469486,1714956688726,-7226.05437769,0.000129,2]
[326469530,1714957683713,151.0,0.0002062,120]
[326469536,1714957832995,-175.97745463,0.00011654,2]
[326469537,1714957833007,-84.33242649,0.00011655,2]
[326469538,1714957833048,-415.66757351,0.00011655,2]
[326469539,1714957833060,-70.21418235,0.00011686,2]
[326469540,1714957833072,-942.89298596,0.00011686,2]
[326469541,1714957833426,-2450.0,0.00011686,2]
[326469578,1714957838750,-2085.02544602,0.00011685,2]
[326469579,1714957838763,-2326.76341756,0.00011685,2]
[326469580,1714957838773,-807.27049591,0.00011686,2]
[326469581,1714957838784,-513.6,0.00011693,2]
[326469582,1714957838796,-2061.75770922,0.00011693,2]
[326469583,1714957838807,-153.95202109,0.00012097,2]
[326469584,1714957838817,-250.0,0.00012125,2]
[326469585,1714957838827,-153.95202106,0.00012161,2]
[326469586,1714957838837,-538.51236108,0.00012201,2]
[326469587,1714957838847,-232.14,0.00012214,2]
[326469588,1714957838857,-368.78,0.00012214,2]
[326469589,1714957838869,-499.99,0.00012214,2]
[326469590,1714957838879,-153.95202106,0.00012225,2]
[326469591,1714957838889,-150.99,0.00012225,2]
[326469592,1714957838903,-153.95202106,0.00012289,2]
[326469593,1714957838918,-179.01019877,0.00012317,2]
[326469594,1714957839065,-307.38980123,0.00012317,2]
[326469595,1714957839075,-153.95202106,0.00012353,2]
[326469596,1714957839086,-153.95202106,0.00012417,2]
[326469597,1714957839096,-255.01783715,0.00012459,2]
[326469598,1714957839109,-153.95202106,0.0001248,2]
[326469599,1714957839122,-414.53,0.000125,2]
[326469600,1714957839132,-153.95202106,0.00012544,2]
[326469601,1714957839143,-414.53,0.000126,2]
[326469602,1714957839158,-153.95202106,0.00012608,2]
[326469603,1714957839169,-153.95202106,0.00012672,2]
[326469604,1714957839180,-153.95202106,0.00012736,2]
[326469605,1714957839191,-150.0,0.00012743,2]
[326469606,1714957839208,-153.95202106,0.000128,2]
[326469607,1714957839223,-313.41818879,0.000128,2]
[326469608,1714957839234,-1814.5685,0.000128,2]
[326469609,1714957839245,-241.61118296,0.00012898,2]
[326469610,1714957839256,-662.34,0.00012898,2]
[326469611,1714957839267,-1243.3075394,0.00012898,2]
[326469612,1714957839278,-536.49041607,0.00012899,2]
[326469613,1714957839289,-283.635,0.000129,2]
[326469614,1714957839300,-3113.8626,0.000129,2]
[326469615,1714957839310,-37180.52035599,0.000129,2]
[326469616,1714957839321,-156.70518503,0.000129,2]
[326469617,1714957839332,-155.62098903,0.000129,2]
[326469618,1714957839343,-6442.83872109,0.000129,2]
[326469619,1714957839353,-7500.0,0.000129,2]
[326469620,1714957839364,-2255.8414101,0.00012988,2]
[326469621,1714957839375,-24727.21737685,0.00012988,2]
[326469622,1714957839442,-4314.66608278,0.00012988,2]
[326469623,1714957840620,-1705.95672332,0.00012988,2]
[326469624,1714957840634,-427.81386065,0.00012988,2]
[326469625,1714957840647,-288.37199,0.00012988,2]
[326469626,1714957840658,-921.4064905,0.00012988,2]
[326469627,1714957840673,-46.1544435,0.00012988,2]
[326469628,1714957840707,-2778.7107553,0.00012988,2]
[326469629,1714957840717,-1756.5458645,0.00012988,2]
[326469630,1714957840728,-4130.45241967,0.00012988,2]
[326469631,1714957840743,-8947.21879473,0.00012988,2]
[326469632,1714957840762,-8938.4944882,0.00012988,2]
[326469633,1714957840773,-5.28937642,0.00012988,2]
[326469634,1714957840786,-6525.21488218,0.00012988,2]
[326469635,1714957840797,-335.94866595,0.00012988,2]
[326469636,1714957840812,-345.79249475,0.00012997,2]
[326469637,1714957840822,-324.98071531,0.00012998,2]
[326469638,1714957840833,-1545.61190333,0.00013,2]
[326469639,1714957840847,-8943.84023489,0.00013,2]
[326469669,1714957843329,-1245.57855246,0.00012987,2]
[326469670,1714957843340,-1021.92144754,0.00013,2]
[326469671,1714957843471,-623.25,0.00013,2]
[326469672,1714957843486,-434.4604038,0.00013,2]
[326469673,1714957843516,-826.25901472,0.00013,2]
[326469674,1714957843598,-0.18448126,0.00013,2]
[326469675,1714957843718,-623.41274859,0.00013,2]
[326469695,1714957846537,-414.53,0.000125,2]
[326469697,1714957846548,-116.07,0.00012986,2]
[326469699,1714957846561,-110.02068532,0.00012986,2]
[326469701,1714957846573,-387.72931468,0.00013,2]
[326469703,1714957846586,-272.69910537,0.00013,2]
[326469706,1714957846598,-627.36546595,0.00013,2]
[326469726,1714957846811,-1303.58494265,0.00013,2]
[326469728,1714957846824,-322.9200001,0.00013,2]
[326469730,1714957846839,-382.28943785,0.00013,2]